[Event "Titled Tuesday Blitz June 13 Early 2023"]
[White "Porat, Tori"]
[Black "Kiseleva, Arina"]
[WhiteFideId "30982626"]
[BlackFideId "4164989"]
[WhiteElo "1752"]
[BlackElo "1701"]
[Result "0-1"]
[Round "8"]
[TimeControl "180+2"]
[Date "2023.06.13"]
[WhiteClock "0:00:50"]
[BlackClock "0:01:09"]
[Board "178"]

1. c4 {[%clk 0:03:00]}  e5 {[%clk 0:02:59]} 2. Nc3 {[%clk 0:02:57]}  Bb4 {[%clk 0:02:58]} 3. d4 {[%clk 0:02:51]}  exd4 {[%clk 0:02:45]} 4. Qxd4 {[%clk 0:02:50]}  Nf6 {[%clk 0:02:45]} 5. Bg5 {[%clk 0:02:49]}  Nc6 {[%clk 0:02:39]} 6. Qe3+ {[%clk 0:02:47]}  Kf8 {[%clk 0:02:34]} 7. Nf3 {[%clk 0:02:41]}  h6 {[%clk 0:02:34]} 8. Bh4 {[%clk 0:02:40]}  d6 {[%clk 0:02:30]} 9. g3 {[%clk 0:02:38]}  g5 {[%clk 0:02:28]} 10. Nxg5 {[%clk 0:02:37]}  hxg5 {[%clk 0:02:27]} 11. Qxg5 {[%clk 0:02:26]}  Ne4 {[%clk 0:02:23]} 12. Qe3 {[%clk 0:02:17]}  Rxh4 {[%clk 0:02:16]} 13. gxh4 {[%clk 0:02:14]}  Qxh4 {[%clk 0:02:13]} 14. Bg2 {[%clk 0:02:05]}  Nxc3 {[%clk 0:02:07]} 15. bxc3 {[%clk 0:02:04]}  Bc5 {[%clk 0:02:07]} 16. Qf3 {[%clk 0:01:55]}  Ne5 {[%clk 0:01:46]} 17. Qg3 {[%clk 0:01:54]}  Qf6 {[%clk 0:01:43]} 18. O-O {[%clk 0:01:52]}  c6 {[%clk 0:01:42]} 19. Kh1 {[%clk 0:01:32]}  Be6 {[%clk 0:01:37]} 20. Bf3 {[%clk 0:01:30]}  Nxf3 {[%clk 0:01:34]} 21. exf3 {[%clk 0:01:30]}  Bxc4 {[%clk 0:01:34]} 22. Rg1 {[%clk 0:01:29]}  Bd5 {[%clk 0:01:19]} 23. Qg8+ {[%clk 0:01:25]}  Ke7 {[%clk 0:01:19]} 24. Rae1+ {[%clk 0:01:23]}  Kd7 {[%clk 0:01:19]} 25. Qg4+ {[%clk 0:01:17]}  Kc7 {[%clk 0:01:18]} 26. Re4 {[%clk 0:01:12]}  Bxe4 {[%clk 0:01:14]} 27. fxe4 {[%clk 0:01:11]}  Qxf2 {[%clk 0:01:11]} 28. h3 {[%clk 0:00:54]}  Qxg1+ {[%clk 0:01:08]} 29. Qxg1 {[%clk 0:00:53]}  Bxg1 {[%clk 0:01:09]} 30. Kxg1 {[%clk 0:00:50]}  Re8 {[%clk 0:01:09]} 0-1


[Site "https://www.chess.com"]

[Event "Titled Tuesday Blitz June 13 Early 2023"]
[White "Kramnik, Vladimir"]
[Black "Dubov, Daniil"]
[WhiteFideId "4101588"]
[BlackFideId "24126055"]
[WhiteElo "2703"]
[BlackElo "2793"]
[Result "0-1"]
[Round "9"]
[TimeControl "180+2"]
[Date "2023.06.13"]
[WhiteClock "0:00:00"]
[BlackClock "0:00:19"]
[Board "2"]

1. e4 {[%clk 0:03:00]}  c5 {[%clk 0:03:00]} 2. Nf3 {[%clk 0:03:00]}  Nc6 {[%clk 0:02:58]} 3. d4 {[%clk 0:02:59]}  cxd4 {[%clk 0:02:58]} 4. Nxd4 {[%clk 0:03:00]}  Nf6 {[%clk 0:02:59]} 5. Nc3 {[%clk 0:03:00]}  e5 {[%clk 0:03:00]} 6. Ndb5 {[%clk 0:02:59]}  d6 {[%clk 0:03:00]} 7. Bg5 {[%clk 0:02:58]}  a6 {[%clk 0:03:00]} 8. Na3 {[%clk 0:02:58]}  b5 {[%clk 0:03:01]} 9. Bxf6 {[%clk 0:02:58]}  gxf6 {[%clk 0:03:01]} 10. Nd5 {[%clk 0:02:58]}  Bg7 {[%clk 0:03:02]} 11. g3 {[%clk 0:02:55]}  Ne7 {[%clk 0:02:56]} 12. Nxe7 {[%clk 0:02:50]}  Qxe7 {[%clk 0:02:56]} 13. Bg2 {[%clk 0:02:48]}  d5 {[%clk 0:02:56]} 14. Qxd5 {[%clk 0:02:45]}  Rb8 {[%clk 0:02:56]} 15. O-O {[%clk 0:02:44]}  O-O {[%clk 0:02:55]} 16. Qd1 {[%clk 0:02:26]}  Be6 {[%clk 0:02:53]} 17. c3 {[%clk 0:02:08]}  b4 {[%clk 0:02:47]} 18. Nc2 {[%clk 0:01:59]}  bxc3 {[%clk 0:02:44]} 19. bxc3 {[%clk 0:01:59]}  Rfd8 {[%clk 0:02:39]} 20. Qf3 {[%clk 0:01:46]}  Rb2 {[%clk 0:02:02]} 21. Nb4 {[%clk 0:01:39]}  Rdd2 {[%clk 0:02:00]} 22. Nd5 {[%clk 0:01:26]}  Qd8 {[%clk 0:01:36]} 23. c4 {[%clk 0:01:22]}  f5 {[%clk 0:01:32]} 24. Rad1 {[%clk 0:00:54]}  fxe4 {[%clk 0:00:58]} 25. Qxe4 {[%clk 0:00:54]}  Rxa2 {[%clk 0:00:58]} 26. Rxd2 {[%clk 0:00:47]}  Rxd2 {[%clk 0:00:59]} 27. Qe3 {[%clk 0:00:31]}  Rd4 {[%clk 0:00:58]} 28. Qb3 {[%clk 0:00:21]}  a5 {[%clk 0:00:49]} 29. Qb5 {[%clk 0:00:17]}  h6 {[%clk 0:00:46]} 30. Ne3 {[%clk 0:00:12]}  e4 {[%clk 0:00:43]} 31. h4 {[%clk 0:00:13]}  Bd7 {[%clk 0:00:37]} 32. Qc5 {[%clk 0:00:12]}  a4 {[%clk 0:00:36]} 33. Nf5 {[%clk 0:00:11]}  Bxf5 {[%clk 0:00:36]} 34. Qxf5 {[%clk 0:00:11]}  a3 {[%clk 0:00:36]} 35. c5 {[%clk 0:00:06]}  a2 {[%clk 0:00:34]} 36. c6 {[%clk 0:00:06]}  Rd1 {[%clk 0:00:19]} 37. Rxd1 {[%clk 0:00:05]}  Qxd1+ {[%clk 0:00:20]} 38. Kh2 {[%clk 0:00:06]}  Qd8 {[%clk 0:00:21]} 39. Bxe4 {[%clk 0:00:00]}  a1=Q {[%clk 0:00:19]} 0-1


[Site "https://www.chess.com"]

[Event "Titled Tuesday Blitz June 13 Early 2023"]
[White "Bok, Benjamin"]
[Black "Lazavik, Denis"]
[WhiteFideId "1017063"]
[BlackFideId "13515110"]
[WhiteElo "2657"]
[BlackElo "2560"]
[Result "1/2-1/2"]
[Round "9"]
[TimeControl "180+2"]
[Date "2023.06.13"]
[WhiteClock "0:02:15"]
[BlackClock "0:01:57"]
[Board "3"]

1. d4 {[%clk 0:03:00]}  Nf6 {[%clk 0:02:59]} 2. c4 {[%clk 0:03:01]}  e6 {[%clk 0:03:00]} 3. Nc3 {[%clk 0:03:01]}  Bb4 {[%clk 0:03:00]} 4. Qc2 {[%clk 0:03:02]}  O-O {[%clk 0:03:01]} 5. a3 {[%clk 0:03:02]}  Bxc3+ {[%clk 0:03:01]} 6. Qxc3 {[%clk 0:03:03]}  d5 {[%clk 0:03:01]} 7. Bg5 {[%clk 0:03:03]}  h6 {[%clk 0:03:02]} 8. Bxf6 {[%clk 0:03:03]}  Qxf6 {[%clk 0:03:03]} 9. Nf3 {[%clk 0:03:03]}  dxc4 {[%clk 0:03:02]} 10. Qxc4 {[%clk 0:03:04]}  Nc6 {[%clk 0:03:02]} 11. Qc3 {[%clk 0:03:04]}  Re8 {[%clk 0:02:59]} 12. Rd1 {[%clk 0:03:04]}  e5 {[%clk 0:02:59]} 13. d5 {[%clk 0:03:04]}  Nb8 {[%clk 0:02:59]} 14. e3 {[%clk 0:03:05]}  Bg4 {[%clk 0:02:56]} 15. Be2 {[%clk 0:03:04]}  Nd7 {[%clk 0:02:56]} 16. O-O {[%clk 0:03:03]}  Rac8 {[%clk 0:02:51]} 17. Qb4 {[%clk 0:02:54]}  Bxf3 {[%clk 0:02:47]} 18. Bxf3 {[%clk 0:02:55]}  Qb6 {[%clk 0:02:46]} 19. Bg4 {[%clk 0:02:40]}  Qxb4 {[%clk 0:02:36]} 20. axb4 {[%clk 0:02:41]}  Rcd8 {[%clk 0:02:37]} 21. Bxd7 {[%clk 0:02:23]}  Rxd7 {[%clk 0:02:36]} 22. e4 {[%clk 0:02:24]}  c6 {[%clk 0:02:21]} 23. dxc6 {[%clk 0:02:23]}  Rxd1 {[%clk 0:02:20]} 24. Rxd1 {[%clk 0:02:24]}  bxc6 {[%clk 0:02:20]} 25. Rd6 {[%clk 0:02:14]}  Rb8 {[%clk 0:02:19]} 26. Rxc6 {[%clk 0:02:14]}  Rxb4 {[%clk 0:02:19]} 27. f3 {[%clk 0:02:15]}  Rxb2 {[%clk 0:02:13]} 28. Rc8+ {[%clk 0:02:15]}  Kh7 {[%clk 0:02:13]} 29. Rc7 {[%clk 0:02:15]}  f6 {[%clk 0:01:57]} 30. Rxa7 {[%clk 0:02:15]} 1/2-1/2


[Site "https://www.chess.com"]

[Event "Titled Tuesday Blitz June 13 Early 2023"]
[White "Nihal Sarin"]
[Black "Lintchevski, Daniil"]
[WhiteFideId "25092340"]
[BlackFideId "4171055"]
[WhiteElo "2689"]
[BlackElo "2559"]
[Result "1/2-1/2"]
[Round "9"]
[TimeControl "180+2"]
[Date "2023.06.13"]
[WhiteClock "0:00:09"]
[BlackClock "0:00:08"]
[Board "6"]

1. e4 {[%clk 0:03:00]}  e5 {[%clk 0:02:58]} 2. Nf3 {[%clk 0:03:00]}  Nc6 {[%clk 0:02:59]} 3. Bb5 {[%clk 0:03:00]}  a6 {[%clk 0:02:58]} 4. Ba4 {[%clk 0:03:01]}  Nge7 {[%clk 0:02:58]} 5. O-O {[%clk 0:02:59]}  Ng6 {[%clk 0:02:57]} 6. d4 {[%clk 0:02:57]}  exd4 {[%clk 0:02:44]} 7. Nxd4 {[%clk 0:02:58]}  Nxd4 {[%clk 0:02:45]} 8. Qxd4 {[%clk 0:02:58]}  b5 {[%clk 0:02:46]} 9. Bb3 {[%clk 0:02:59]}  Bb7 {[%clk 0:02:46]} 10. c4 {[%clk 0:02:50]}  c5 {[%clk 0:02:36]} 11. Qe3 {[%clk 0:02:49]}  Be7 {[%clk 0:02:12]} 12. Nc3 {[%clk 0:02:47]}  b4 {[%clk 0:02:03]} 13. Nd5 {[%clk 0:02:46]}  O-O {[%clk 0:02:04]} 14. f4 {[%clk 0:02:28]}  Re8 {[%clk 0:02:04]} 15. e5 {[%clk 0:02:22]}  Bf8 {[%clk 0:01:53]} 16. Kh1 {[%clk 0:02:16]}  d6 {[%clk 0:01:52]} 17. Ba4 {[%clk 0:02:16]}  Re6 {[%clk 0:01:47]} 18. Qg3 {[%clk 0:02:10]}  Ne7 {[%clk 0:01:35]} 19. Bc2 {[%clk 0:01:44]}  dxe5 {[%clk 0:01:19]} 20. f5 {[%clk 0:01:43]}  Rd6 {[%clk 0:01:16]} 21. Bg5 {[%clk 0:00:39]}  Bxd5 {[%clk 0:00:58]} 22. f6 {[%clk 0:00:39]}  Bc6 {[%clk 0:00:39]} 23. Bxh7+ {[%clk 0:00:19]}  Kxh7 {[%clk 0:00:27]} 24. Qh4+ {[%clk 0:00:18]}  Kg8 {[%clk 0:00:26]} 25. fxe7 {[%clk 0:00:19]}  Qd7 {[%clk 0:00:20]} 26. exf8=Q+ {[%clk 0:00:09]}  Rxf8 {[%clk 0:00:21]} 27. Be3 {[%clk 0:00:08]}  Rg6 {[%clk 0:00:20]} 28. Rf2 {[%clk 0:00:08]}  Rc8 {[%clk 0:00:17]} 29. Re1 {[%clk 0:00:03]}  Qg4 {[%clk 0:00:15]} 30. Qxg4 {[%clk 0:00:03]}  Rxg4 {[%clk 0:00:16]} 31. b3 {[%clk 0:00:04]}  f6 {[%clk 0:00:16]} 32. h3 {[%clk 0:00:04]}  Re4 {[%clk 0:00:15]} 33. Rd2 {[%clk 0:00:04]}  a5 {[%clk 0:00:13]} 34. Kg1 {[%clk 0:00:04]}  a4 {[%clk 0:00:13]} 35. Kf2 {[%clk 0:00:05]}  axb3 {[%clk 0:00:14]} 36. axb3 {[%clk 0:00:06]}  Be8 {[%clk 0:00:13]} 37. Red1 {[%clk 0:00:06]}  Bg6 {[%clk 0:00:07]} 38. Rd8+ {[%clk 0:00:06]}  Rxd8 {[%clk 0:00:07]} 39. Rxd8+ {[%clk 0:00:07]}  Kh7 {[%clk 0:00:08]} 40. g3 {[%clk 0:00:03]}  f5 {[%clk 0:00:08]} 41. Bxc5 {[%clk 0:00:03]}  f4 {[%clk 0:00:08]} 42. Rd2 {[%clk 0:00:03]}  fxg3+ {[%clk 0:00:07]} 43. Kxg3 {[%clk 0:00:03]}  Bf5 {[%clk 0:00:04]} 44. Rb2 {[%clk 0:00:03]}  Kg6 {[%clk 0:00:03]} 45. Bxb4 {[%clk 0:00:04]}  Re3+ {[%clk 0:00:03]} 46. Kg2 {[%clk 0:00:04]}  Be4+ {[%clk 0:00:03]} 47. Kh2 {[%clk 0:00:03]}  Bf5 {[%clk 0:00:03]} 48. Bd6 {[%clk 0:00:03]}  Rxh3+ {[%clk 0:00:03]} 49. Kg2 {[%clk 0:00:04]}  Re3 {[%clk 0:00:03]} 50. b4 {[%clk 0:00:04]}  Be4+ {[%clk 0:00:03]} 51. Kf2 {[%clk 0:00:04]}  Rf3+ {[%clk 0:00:03]} 52. Ke2 {[%clk 0:00:05]}  Kf5 {[%clk 0:00:04]} 53. b5 {[%clk 0:00:05]}  Rh3 {[%clk 0:00:05]} 54. Kd2 {[%clk 0:00:05]}  Rh2+ {[%clk 0:00:05]} 55. Kc3 {[%clk 0:00:06]}  Rxb2 {[%clk 0:00:06]} 56. Kxb2 {[%clk 0:00:07]}  g5 {[%clk 0:00:06]} 57. Kc3 {[%clk 0:00:06]}  g4 {[%clk 0:00:06]} 58. Bc5 {[%clk 0:00:06]}  g3 {[%clk 0:00:07]} 59. Be3 {[%clk 0:00:06]}  g2 {[%clk 0:00:07]} 60. c5 {[%clk 0:00:05]}  Ke6 {[%clk 0:00:08]} 61. Kb4 {[%clk 0:00:06]}  Kd7 {[%clk 0:00:08]} 62. Ka5 {[%clk 0:00:07]}  Kc7 {[%clk 0:00:08]} 63. Bg1 {[%clk 0:00:08]}  Bf3 {[%clk 0:00:08]} 64. Bh2 {[%clk 0:00:08]}  Kb7 {[%clk 0:00:08]} 65. Kb4 {[%clk 0:00:09]}  Be4 {[%clk 0:00:07]} 66. Kc4 {[%clk 0:00:09]}  Bf3 {[%clk 0:00:08]} 67. Kd3 {[%clk 0:00:09]}  Bd5 {[%clk 0:00:06]} 68. Kc3 {[%clk 0:00:08]}  Bf3 {[%clk 0:00:06]} 69. Kc4 {[%clk 0:00:08]}  Be2+ {[%clk 0:00:06]} 70. Kb4 {[%clk 0:00:08]}  Bf3 {[%clk 0:00:07]} 71. Bg1 {[%clk 0:00:09]}  Kc7 {[%clk 0:00:07]} 72. Be3 {[%clk 0:00:09]}  Kb7 {[%clk 0:00:07]} 73. Kc3 {[%clk 0:00:10]}  Kc7 {[%clk 0:00:07]} 74. Kc4 {[%clk 0:00:10]}  Kb7 {[%clk 0:00:07]} 75. Bf2 {[%clk 0:00:10]}  Be2+ {[%clk 0:00:08]} 76. Kb4 {[%clk 0:00:11]}  Bf3 {[%clk 0:00:08]} 77. Kc3 {[%clk 0:00:11]}  Kc7 {[%clk 0:00:07]} 78. Bg1 {[%clk 0:00:12]}  Kb7 {[%clk 0:00:08]} 79. Bh2 {[%clk 0:00:12]}  Be4 {[%clk 0:00:07]} 80. Kd2 {[%clk 0:00:11]}  Bf3 {[%clk 0:00:07]} 81. Ke3 {[%clk 0:00:12]}  Bd5 {[%clk 0:00:08]} 82. Kf2 {[%clk 0:00:10]}  Bc4 {[%clk 0:00:08]} 83. b6 {[%clk 0:00:10]}  Bd5 {[%clk 0:00:07]} 84. Bxe5 {[%clk 0:00:09]}  Bc6 {[%clk 0:00:08]} 1/2-1/2


[Site "https://www.chess.com"]

[Event "Titled Tuesday Blitz June 13 Early 2023"]
[White "Andreikin, Dmitry"]
[Black "Swiercz, Dariusz"]
[WhiteFideId "4158814"]
[BlackFideId "1126881"]
[WhiteElo "2736"]
[BlackElo "2620"]
[Result "1-0"]
[Round "9"]
[TimeControl "180+2"]
[Date "2023.06.13"]
[WhiteClock "0:00:08"]
[BlackClock "0:00:00"]
[Board "8"]

1. d4 {[%clk 0:03:00]}  d5 {[%clk 0:02:58]} 2. c4 {[%clk 0:03:01]}  e6 {[%clk 0:02:58]} 3. Nf3 {[%clk 0:02:59]}  Nf6 {[%clk 0:02:58]} 4. Bg5 {[%clk 0:02:59]}  Be7 {[%clk 0:02:48]} 5. e3 {[%clk 0:02:59]}  O-O {[%clk 0:02:46]} 6. Qc2 {[%clk 0:02:59]}  Nbd7 {[%clk 0:02:47]} 7. Nc3 {[%clk 0:02:59]}  h6 {[%clk 0:02:47]} 8. Bh4 {[%clk 0:02:57]}  c5 {[%clk 0:02:44]} 9. Rd1 {[%clk 0:02:47]}  cxd4 {[%clk 0:02:41]} 10. Nxd4 {[%clk 0:02:36]}  Ne5 {[%clk 0:01:36]} 11. Bg3 {[%clk 0:02:25]}  Nc6 {[%clk 0:01:31]} 12. cxd5 {[%clk 0:02:23]}  Nb4 {[%clk 0:01:25]} 13. Qb3 {[%clk 0:02:18]}  Nbxd5 {[%clk 0:01:25]} 14. Be2 {[%clk 0:01:53]}  Qa5 {[%clk 0:01:20]} 15. O-O {[%clk 0:01:53]}  Nxc3 {[%clk 0:01:19]} 16. bxc3 {[%clk 0:01:53]}  Ne4 {[%clk 0:01:18]} 17. Bf3 {[%clk 0:01:53]}  Nxg3 {[%clk 0:01:14]} 18. hxg3 {[%clk 0:01:54]}  Qc7 {[%clk 0:01:04]} 19. c4 {[%clk 0:01:48]}  a6 {[%clk 0:00:59]} 20. Rb1 {[%clk 0:01:38]}  Ra7 {[%clk 0:00:54]} 21. Rfc1 {[%clk 0:01:27]}  Bd7 {[%clk 0:00:50]} 22. Qc3 {[%clk 0:01:18]}  b6 {[%clk 0:00:46]} 23. Ne2 {[%clk 0:01:10]}  Rc8 {[%clk 0:00:45]} 24. Nf4 {[%clk 0:01:10]}  Be8 {[%clk 0:00:30]} 25. Nh5 {[%clk 0:01:05]}  Bf8 {[%clk 0:00:24]} 26. Qd4 {[%clk 0:01:04]}  Qc5 {[%clk 0:00:10]} 27. Rxb6 {[%clk 0:01:03]}  Rac7 {[%clk 0:00:08]} 28. Qxc5 {[%clk 0:00:55]}  Rxc5 {[%clk 0:00:07]} 29. Rxa6 {[%clk 0:00:54]}  Bb5 {[%clk 0:00:03]} 30. Ra7 {[%clk 0:00:45]}  Bxc4 {[%clk 0:00:03]} 31. a4 {[%clk 0:00:44]}  e5 {[%clk 0:00:02]} 32. g4 {[%clk 0:00:39]}  Be6 {[%clk 0:00:01]} 33. Rxc5 {[%clk 0:00:37]}  Bxc5 {[%clk 0:00:02]} 34. Rb7 {[%clk 0:00:34]}  e4 {[%clk 0:00:02]} 35. Bxe4 {[%clk 0:00:31]}  Bxg4 {[%clk 0:00:02]} 36. Nf4 {[%clk 0:00:29]}  Bd6 {[%clk 0:00:03]} 37. g3 {[%clk 0:00:26]}  g5 {[%clk 0:00:02]} 38. Nd3 {[%clk 0:00:19]}  Be6 {[%clk 0:00:01]} 39. a5 {[%clk 0:00:19]}  Rc4 {[%clk 0:00:01]} 40. Bf3 {[%clk 0:00:13]}  Ra4 {[%clk 0:00:02]} 41. Rb6 {[%clk 0:00:12]}  Be7 {[%clk 0:00:02]} 42. a6 {[%clk 0:00:11]}  Bc4 {[%clk 0:00:02]} 43. Ne5 {[%clk 0:00:10]}  Ra1+ {[%clk 0:00:02]} 44. Kh2 {[%clk 0:00:10]}  Bxa6 {[%clk 0:00:03]} 45. Bd5 {[%clk 0:00:10]}  Kg7 {[%clk 0:00:02]} 46. Bxf7 {[%clk 0:00:09]}  Bf6 {[%clk 0:00:03]} 47. Ng4 {[%clk 0:00:09]}  Bc3 {[%clk 0:00:02]} 48. Nxh6 {[%clk 0:00:09]}  Be1 {[%clk 0:00:01]} 49. Rg6+ {[%clk 0:00:09]}  Kf8 {[%clk 0:00:01]} 50. Bd5 {[%clk 0:00:09]}  Bxf2 {[%clk 0:00:00]} 51. Nf5 {[%clk 0:00:08]} 1-0


[Site "https://www.chess.com"]

[Event "Titled Tuesday Blitz June 13 Early 2023"]
[White "Duda, Jan-Krzysztof"]
[Black "Terry, Renato"]
[WhiteFideId "1170546"]
[BlackFideId "3803457"]
[WhiteElo "2783"]
[BlackElo "2575"]
[Result "0-1"]
[Round "9"]
[TimeControl "180+2"]
[Date "2023.06.13"]
[WhiteClock "0:00:00"]
[BlackClock "0:00:10"]
[Board "9"]

1. e4 {[%clk 0:03:00]}  e6 {[%clk 0:03:00]} 2. d4 {[%clk 0:02:59]}  d5 {[%clk 0:03:01]} 3. exd5 {[%clk 0:02:59]}  exd5 {[%clk 0:03:01]} 4. Nf3 {[%clk 0:03:00]}  Nc6 {[%clk 0:03:00]} 5. Bb5 {[%clk 0:02:58]}  Bd6 {[%clk 0:03:00]} 6. c4 {[%clk 0:02:58]}  dxc4 {[%clk 0:03:01]} 7. d5 {[%clk 0:02:58]}  a6 {[%clk 0:03:01]} 8. Ba4 {[%clk 0:02:58]}  b5 {[%clk 0:03:01]} 9. dxc6 {[%clk 0:02:59]}  bxa4 {[%clk 0:03:02]} 10. Qxa4 {[%clk 0:02:58]}  Ne7 {[%clk 0:03:00]} 11. Nbd2 {[%clk 0:02:57]}  Rb8 {[%clk 0:03:00]} 12. Nxc4 {[%clk 0:02:55]}  Rb4 {[%clk 0:02:51]} 13. Qc2 {[%clk 0:02:51]}  Bf5 {[%clk 0:02:45]} 14. Qc3 {[%clk 0:02:50]}  O-O {[%clk 0:02:38]} 15. O-O {[%clk 0:02:49]}  Nd5 {[%clk 0:02:23]} 16. Qd4 {[%clk 0:02:38]}  Nb6 {[%clk 0:02:23]} 17. b3 {[%clk 0:02:31]}  Be6 {[%clk 0:02:14]} 18. Ba3 {[%clk 0:02:25]}  Rxc4 {[%clk 0:02:12]} 19. bxc4 {[%clk 0:02:19]}  Bxa3 {[%clk 0:02:12]} 20. Qxd8 {[%clk 0:02:09]}  Rxd8 {[%clk 0:02:12]} 21. Rfd1 {[%clk 0:02:09]}  Rxd1+ {[%clk 0:01:38]} 22. Rxd1 {[%clk 0:02:10]}  Kf8 {[%clk 0:01:39]} 23. Ng5 {[%clk 0:02:07]}  Bxc4 {[%clk 0:01:33]} 24. Nxh7+ {[%clk 0:02:04]}  Ke7 {[%clk 0:01:33]} 25. Ng5 {[%clk 0:01:56]}  f6 {[%clk 0:01:29]} 26. Nf3 {[%clk 0:01:50]}  Bc5 {[%clk 0:01:24]} 27. Nd2 {[%clk 0:01:41]}  Bxa2 {[%clk 0:01:16]} 28. Re1+ {[%clk 0:01:39]}  Kd6 {[%clk 0:01:00]} 29. Ra1 {[%clk 0:01:29]}  Bc4 {[%clk 0:00:54]} 30. Nxc4+ {[%clk 0:01:22]}  Nxc4 {[%clk 0:00:55]} 31. Rxa6 {[%clk 0:01:23]}  Nb6 {[%clk 0:00:54]} 32. h4 {[%clk 0:01:19]}  Kxc6 {[%clk 0:00:53]} 33. h5 {[%clk 0:01:19]}  Kd7 {[%clk 0:00:46]} 34. g4 {[%clk 0:01:17]}  Ke7 {[%clk 0:00:29]} 35. Kg2 {[%clk 0:01:12]}  Bd6 {[%clk 0:00:30]} 36. Ra5 {[%clk 0:01:08]}  Ke6 {[%clk 0:00:29]} 37. Kf3 {[%clk 0:01:06]}  Nc4 {[%clk 0:00:27]} 38. Ra8 {[%clk 0:01:05]}  Ne5+ {[%clk 0:00:27]} 39. Kf4 {[%clk 0:01:03]}  Nd3+ {[%clk 0:00:22]} 40. Ke3 {[%clk 0:01:03]}  Ne5 {[%clk 0:00:23]} 41. f3 {[%clk 0:01:03]}  Kf7 {[%clk 0:00:23]} 42. Ke4 {[%clk 0:01:02]}  Ke6 {[%clk 0:00:23]} 43. Re8+ {[%clk 0:00:54]}  Kf7 {[%clk 0:00:23]} 44. Rc8 {[%clk 0:00:54]}  Ke6 {[%clk 0:00:23]} 45. Re8+ {[%clk 0:00:51]}  Kf7 {[%clk 0:00:24]} 46. Rb8 {[%clk 0:00:52]}  Nd7 {[%clk 0:00:22]} 47. Rb1 {[%clk 0:00:51]}  Nc5+ {[%clk 0:00:23]} 48. Kf5 {[%clk 0:00:49]}  Ne6 {[%clk 0:00:24]} 49. Rd1 {[%clk 0:00:49]}  Ng5 {[%clk 0:00:20]} 50. f4 {[%clk 0:00:36]}  Ne6 {[%clk 0:00:21]} 51. g5 {[%clk 0:00:37]}  Nxf4 {[%clk 0:00:18]} 52. g6+ {[%clk 0:00:22]}  Kf8 {[%clk 0:00:16]} 53. Rh1 {[%clk 0:00:19]}  Ne2 {[%clk 0:00:12]} 54. Kg4 {[%clk 0:00:02]}  f5+ {[%clk 0:00:09]} 55. Kg5 {[%clk 0:00:01]}  Be7+ {[%clk 0:00:09]} 56. Kxf5 {[%clk 0:00:02]}  Ng3+ {[%clk 0:00:09]} 57. Ke6 {[%clk 0:00:00]}  Nxh1 {[%clk 0:00:10]} 0-1


[Site "https://www.chess.com"]

[Event "Titled Tuesday Blitz June 13 Early 2023"]
[White "Deac, Bogdan-Daniel"]
[Black "Fedoseev, Vladimir"]
[WhiteFideId "1226380"]
[BlackFideId "24130737"]
[WhiteElo "2644"]
[BlackElo "2743"]
[Result "1-0"]
[Round "9"]
[TimeControl "180+2"]
[Date "2023.06.13"]
[WhiteClock "0:00:04"]
[BlackClock "0:00:03"]
[Board "10"]

1. d4 {[%clk 0:03:00]}  Nf6 {[%clk 0:02:21]} 2. c4 {[%clk 0:03:00]}  e6 {[%clk 0:02:21]} 3. Nf3 {[%clk 0:03:00]}  d5 {[%clk 0:02:22]} 4. g3 {[%clk 0:03:01]}  h6 {[%clk 0:02:16]} 5. Bg2 {[%clk 0:03:00]}  Bb4+ {[%clk 0:02:16]} 6. Nc3 {[%clk 0:02:58]}  O-O {[%clk 0:02:15]} 7. O-O {[%clk 0:02:58]}  Nbd7 {[%clk 0:02:08]} 8. Qb3 {[%clk 0:02:54]}  Bxc3 {[%clk 0:01:59]} 9. Qxc3 {[%clk 0:02:18]}  b6 {[%clk 0:01:57]} 10. cxd5 {[%clk 0:02:18]}  Nxd5 {[%clk 0:01:53]} 11. Qc6 {[%clk 0:02:18]}  Ba6 {[%clk 0:01:52]} 12. Re1 {[%clk 0:02:17]}  Qc8 {[%clk 0:01:40]} 13. Bd2 {[%clk 0:01:58]}  Bb7 {[%clk 0:01:39]} 14. Qc4 {[%clk 0:01:53]}  N5f6 {[%clk 0:01:38]} 15. Rac1 {[%clk 0:01:27]}  c5 {[%clk 0:01:33]} 16. dxc5 {[%clk 0:01:23]}  Nxc5 {[%clk 0:01:32]} 17. Qh4 {[%clk 0:01:24]}  Nfe4 {[%clk 0:01:20]} 18. Bxh6 {[%clk 0:00:49]}  gxh6 {[%clk 0:01:19]} 19. b4 {[%clk 0:00:49]}  Qd8 {[%clk 0:01:19]} 20. Qg4+ {[%clk 0:00:26]}  Kh7 {[%clk 0:01:11]} 21. bxc5 {[%clk 0:00:26]}  Nxc5 {[%clk 0:01:11]} 22. Qf4 {[%clk 0:00:25]}  Qe7 {[%clk 0:01:07]} 23. Qe3 {[%clk 0:00:22]}  Rad8 {[%clk 0:01:04]} 24. Rc4 {[%clk 0:00:22]}  f5 {[%clk 0:00:56]} 25. Rh4 {[%clk 0:00:20]}  Rf6 {[%clk 0:00:56]} 26. Ne5 {[%clk 0:00:14]}  Bxg2 {[%clk 0:00:53]} 27. Kxg2 {[%clk 0:00:15]}  Qb7+ {[%clk 0:00:51]} 28. f3 {[%clk 0:00:15]}  Qd5 {[%clk 0:00:52]} 29. Nf7 {[%clk 0:00:11]}  Qd2 {[%clk 0:00:47]} 30. Qxd2 {[%clk 0:00:03]}  Rxd2 {[%clk 0:00:48]} 31. Ne5 {[%clk 0:00:04]}  f4 {[%clk 0:00:34]} 32. gxf4 {[%clk 0:00:02]}  Rxa2 {[%clk 0:00:33]} 33. Kf2 {[%clk 0:00:03]}  Rd2 {[%clk 0:00:27]} 34. Rg1 {[%clk 0:00:02]}  Rd8 {[%clk 0:00:19]} 35. Rhg4 {[%clk 0:00:02]}  Kh8 {[%clk 0:00:15]} 36. Rg7 {[%clk 0:00:03]}  Rdf8 {[%clk 0:00:09]} 37. Rxa7 {[%clk 0:00:02]}  Rg8 {[%clk 0:00:10]} 38. Nf7+ {[%clk 0:00:01]}  Rxf7 {[%clk 0:00:10]} 39. Rxf7 {[%clk 0:00:02]}  Rxg1 {[%clk 0:00:08]} 40. Kxg1 {[%clk 0:00:03]}  b5 {[%clk 0:00:09]} 41. Rc7 {[%clk 0:00:03]}  Na4 {[%clk 0:00:09]} 42. Rb7 {[%clk 0:00:03]}  Nc3 {[%clk 0:00:09]} 43. Kf2 {[%clk 0:00:04]}  Kg8 {[%clk 0:00:08]} 44. e4 {[%clk 0:00:03]}  Kf8 {[%clk 0:00:07]} 45. Ke3 {[%clk 0:00:04]}  Ke8 {[%clk 0:00:06]} 46. Kd4 {[%clk 0:00:04]}  Ne2+ {[%clk 0:00:03]} 47. Ke5 {[%clk 0:00:04]} 1-0


[Site "https://www.chess.com"]